fUSD/lending_fUSD_20240919
["ID","MTS","AMOUNT","RATE_DAILY","PERIOD"]
[338546151,1726728648279,-638.66,0.00013164,2]
[338546152,1726728648289,-843.62,0.00013164,2]
[338546153,1726728648298,-500.0,0.00013164,2]
[338546154,1726728648308,-500.0,0.00013164,2]
[338546155,1726728648317,-500.0,0.00013164,2]
[338546156,1726728648327,-1190.43,0.00013164,2]
[338546157,1726728648337,-500.0,0.00013164,2]
[338546158,1726728648346,-838.99,0.00013164,2]
[338546159,1726728648356,-541.64,0.00013164,2]
[338546160,1726728648366,-1819.16,0.00013164,2]
[338546161,1726728648375,-1944.26,0.00013164,2]
[338546162,1726728648385,-500.0,0.00013164,2]
[338546163,1726728648394,-958.33,0.00013164,2]
[338546164,1726728648404,-500.0,0.00013164,2]
[338546165,1726728648413,-1313.26,0.00013164,2]
[338546166,1726728648423,-500.0,0.00013164,2]
[338546167,1726728648432,-643.08,0.00013164,2]
[338546168,1726728648442,-500.0,0.00013164,2]
[338546169,1726728648453,-1197.94,0.00013164,2]
[338546170,1726728648462,-630.08,0.00013164,2]
[338546171,1726728648472,-500.0,0.00013164,2]
[338546172,1726728648482,-2626.26,0.00013164,2]
[338546173,1726728648491,-1608.65,0.00013164,2]
[338546174,1726728648500,-1595.44,0.00013164,2]
[338546175,1726728648510,-500.0,0.00013164,2]
[338546176,1726728648520,-624.59,0.00013164,2]
[338546177,1726728648529,-500.0,0.00013164,2]
[338546178,1726728648538,-709.8,0.00013164,2]
[338546179,1726728648548,-616.67,0.00013164,2]
[338546180,1726728648557,-1135.71,0.00013164,2]
[338546181,1726728648566,-802.95,0.00013164,2]
[338546182,1726728648576,-1302.6,0.00013164,2]
[338546183,1726728648586,-500.0,0.00013164,2]
[338546184,1726728648596,-500.0,0.00013164,2]
[338546185,1726728648606,-500.0,0.00013164,2]
[338546186,1726728648615,-500.0,0.00013164,2]
[338546187,1726728648624,-500.0,0.00013164,2]
[338546188,1726728648634,-3444.3,0.00013164,2]
[338546189,1726728648643,-1251.71,0.00013164,2]
[338546190,1726728648653,-177.48433774,0.00013165,2]
[338546191,1726728648662,-1073.89,0.00013165,2]
[338546192,1726728648672,-652.45,0.00013165,2]
[338546193,1726728648681,-787.06,0.00013165,2]
[338546194,1726728648691,-791.34,0.00013165,2]
[338546195,1726728648701,-500.0,0.00013165,2]
[338546196,1726728648711,-500.0,0.00013165,2]
[338546197,1726728648721,-709.25,0.00013165,2]
[338546198,1726728648730,-889.51,0.00013165,2]
[338546199,1726728648740,-1488.34,0.00013165,2]
[338546200,1726728648750,-1464.9,0.00013165,2]
[338546201,1726728648759,-1423.5,0.00013165,2]
[338546202,1726728648769,-669.18,0.00013165,2]
[338546203,1726728648778,-1657.68,0.00013165,2]
[338546204,1726728648788,-500.0,0.00013165,2]
[338546205,1726728648797,-1430.14,0.00013165,2]
[338546206,1726728648806,-781.26,0.00013165,2]
[338546207,1726728648816,-2815.55,0.00013165,2]
[338546208,1726728648825,-1492.43,0.00013165,2]
[338546209,1726728648834,-500.0,0.00013165,2]
[338546210,1726728648844,-508.43,0.00013165,2]
[338546211,1726728648853,-1408.62,0.00013165,2]
[338546212,1726728648863,-1367.83,0.00013165,2]
[338546213,1726728648873,-1395.86,0.00013165,2]
[338546214,1726728648882,-2501.94,0.00013165,2]
[338546215,1726728648891,-500.0,0.00013165,2]
[338546216,1726728648900,-500.0,0.00013166,2]
[338546217,1726728648910,-500.0,0.00013166,2]
[338546218,1726728648920,-500.0,0.00013166,2]
[338546219,1726728648929,-500.0,0.00013166,2]
[338546220,1726728648938,-500.0,0.00013166,2]
[338546221,1726728648948,-500.0,0.00013166,2]
[338546222,1726728648959,-506.4015659,0.00013166,2]
[338546223,1726728648968,-500.0,0.00013166,2]
[338546224,1726728648978,-607.69,0.00013166,2]
[338546225,1726728648987,-664.65,0.00013166,2]
[338546226,1726728648998,-503.18,0.00013166,2]
[338546227,1726728649007,-498.22413649,0.00013166,2]
[338546228,1726728649016,-500.0,0.00013166,2]
[338546229,1726728649026,-537.42519138,0.00013166,2]
[338546230,1726728649035,-500.0,0.00013166,2]
[338546231,1726728649046,-500.0,0.00013166,2]
[338546232,1726728649057,-1279.69,0.00013166,2]
[338546233,1726728649066,-500.0,0.00013166,2]
[338546234,1726728649076,-500.0,0.00013166,2]
[338546235,1726728649086,-500.0,0.00013166,2]
[338546236,1726728649096,-234.44395672,0.00013166,2]
[338546237,1726728649106,-500.0,0.00013166,2]
[338546238,1726728649115,-500.0,0.00013166,2]
[338546239,1726728649124,-588.57,0.00013166,2]
[338546240,1726728649134,-500.0,0.00013166,2]
[338546241,1726728649144,-288.36965262,0.00013166,2]
[338546242,1726728649153,-500.0,0.00013166,2]
[338546243,1726728649163,-758.76,0.00013166,2]
[338546244,1726728649172,-500.0,0.00013166,2]
[338546245,1726728649182,-614.01,0.00013166,2]
[338546246,1726728649191,-500.0,0.00013166,2]
[338546247,1726728649200,-500.0,0.00013166,2]
[338546248,1726728649210,-500.0,0.00013166,2]
[338546249,1726728649219,-500.0,0.00013166,2]
[338546250,1726728649229,-619.11242974,0.00013166,2]
[338546251,1726728649239,-500.0,0.00013166,2]
[338546252,1726728649248,-893.21,0.00013166,2]
[338546253,1726728649258,-500.0,0.00013166,2]
[338546254,1726728649267,-750.56,0.00013166,2]
[338546255,1726728649277,-500.0,0.00013166,2]
[338546256,1726728649287,-503.59,0.00013166,2]
[338546257,1726728649296,-500.0,0.00013166,2]
[338546258,1726728649306,-847.79,0.00013166,2]
[338546259,1726728649316,-644.15,0.00013166,2]
[338546260,1726728649325,-500.0,0.00013166,2]
[338546261,1726728649335,-701.3,0.00013166,2]
[338546262,1726728649345,-500.0,0.00013166,2]
[338546263,1726728649355,-795.21,0.00013166,2]
[338546264,1726728649364,-500.0,0.00013166,2]
[338546265,1726728649374,-500.0,0.00013166,2]
[338546266,1726728649385,-500.0,0.00013166,2]
[338546267,1726728649395,-601.2,0.00013166,2]
[338546268,1726728649404,-755.51,0.00013166,2]
[338546269,1726728649413,-640.89,0.00013166,2]
[338546270,1726728649423,-651.43,0.00013166,2]
[338546271,1726728649432,-500.0,0.00013166,2]
[338546272,1726728649442,-1031.86,0.00013166,2]
[338546273,1726728649451,-500.0,0.00013166,2]
[338546274,1726728649461,-500.0,0.00013166,2]
[338546275,1726728649471,-685.82,0.00013166,2]
[338546276,1726728649480,-257.89709114,0.00013166,2]
[338546277,1726728649489,-500.0,0.00013166,2]
[338546278,1726728649499,-500.0,0.00013166,2]
[338546279,1726728649509,-500.0,0.00013166,2]
[338546280,1726728649518,-500.0,0.00013166,2]
[338546281,1726728649528,-500.0,0.00013166,2]
[338546282,1726728649537,-500.0,0.00013166,2]
[338546283,1726728649547,-582.45,0.00013166,2]
[338546284,1726728649556,-500.0,0.00013166,2]
[338546285,1726728649566,-500.0,0.00013166,2]
[338546286,1726728649575,-500.0,0.00013166,2]
[338546287,1726728649653,-500.0,0.00013166,2]
[338546288,1726728649662,-500.0,0.00013166,2]
[338546289,1726728649671,-500.0,0.00013166,2]
[338546290,1726728649681,-500.0,0.00013166,2]
[338546291,1726728649691,-500.0,0.00013166,2]
[338546292,1726728649700,-599.96,0.00013166,2]
[338546293,1726728649710,-500.0,0.00013166,2]
[338546294,1726728649720,-619.82680237,0.00013166,2]
[338546295,1726728649730,-500.0,0.00013166,2]
[338546296,1726728649739,-785.83,0.00013166,2]
[338546297,1726728649748,-647.78159112,0.00013166,2]
[338546298,1726728649758,-500.0,0.00013166,2]
[338546299,1726728649768,-500.0,0.00013166,2]
[338546300,1726728649777,-1733.94,0.00013166,2]
[338546301,1726728649787,-1647.2,0.00013166,2]
[338546302,1726728649796,-1230.86,0.00013166,2]
[338546303,1726728649806,-748.99,0.00013166,2]
[338546304,1726728649815,-500.0,0.00013166,2]
[338546305,1726728649825,-500.0,0.00013166,2]
[338546306,1726728649834,-744.4,0.00013166,2]
[338546307,1726728649844,-500.0,0.00013166,2]
[338546308,1726728649854,-535.57,0.00013166,2]
[338546309,1726728649863,-500.0,0.00013166,2]
[338546310,1726728649872,-620.49,0.00013166,2]
[338546311,1726728649882,-500.0,0.00013166,2]
[338546312,1726728649891,-500.0,0.00013166,2]
[338546313,1726728649900,-560.05,0.00013166,2]
[338546314,1726728649909,-588.95,0.00013166,2]
[338546315,1726728649918,-500.0,0.00013166,2]
[338546316,1726728649927,-500.0,0.00013166,2]
[338546317,1726728649937,-383.41046086,0.00013186,2]
[338546318,1726728649946,-129.69713413,0.00013212,2]
[338546319,1726728649962,-281.84588375,0.00013212,2]
[338546320,1726728649971,-669.0,0.0001323,2]
[338546321,1726728649981,-14416.0326494,0.00013259,2]
[338546322,1726728649990,-6337.96044957,0.00013259,2]
[338546323,1726728650000,-753.25,0.000133,2]
[338546324,1726728650009,-422.7,0.000133,2]
[338546325,1726728650019,-422.7,0.000133,2]
[338546326,1726728650029,-753.25,0.000133,2]
[338546327,1726728650039,-422.7,0.000133,2]
[338546328,1726728650050,-724.70977825,0.000133,2]
[338546329,1726728650063,-28.54022175,0.000133,2]
[338546330,1726728650072,-753.25,0.000133,2]
[338546331,1726728650081,-212.02,0.000133,2]
[338546332,1726728650090,-914.87,0.000133,2]
[338546333,1726728650101,-1179.10447825,0.00013376,2]
[338546334,1726728650113,-201.97292398,0.00013376,2]
[338546335,1726728650122,-10000.0,0.00013376,2]
[338546336,1726728650132,-6333.52167622,0.00013383,2]
[338546337,1726728650144,-947.40643778,0.00013383,2]
[338546338,1726728650156,-2020.54450368,0.00013383,2]
[338546339,1726728650167,-426.99774798,0.00013383,2]
[338546340,1726728650565,-957.52,0.0001289,2]
[338546341,1726728650576,-802.93,0.0001289,2]
[338546342,1726728650587,-1760.45,0.00013164,2]
[338546343,1726728650597,-1020.0,0.00013164,2]
[338546344,1726728650606,-1531.59780404,0.00013383,2]
[338546345,1726728656343,-0.75162518,0.00013383,2]
[338546346,1726728656993,-371.88291753,0.00013383,2]
[338546347,1726728657008,-1324.8,0.00013383,2]
[338546348,1726728657020,-302.0,0.00013383,2]
[338546349,1726728657249,-2435.918,0.00013383,2]
[338546350,1726728657261,-344.849717,0.00013383,2]
[338546351,1726728657274,-33328.91259541,0.00013383,2]
[338546352,1726728657285,-1668.32821834,0.00013383,2]
[338546353,1726728657299,-896.1847932,0.00013383,2]
[338546354,1726728657311,-1675.2,0.00013383,2]
[338546355,1726728657322,-1513.10396364,0.00013383,2]
[338546356,1726728657333,-422.7,0.000134,2]
[338546357,1726728657343,-753.25,0.000134,2]
[338546358,1726728657354,-648.83980419,0.000134,2]
[338546359,1726728657366,-351.16019581,0.000134,2]
[338546360,1726728657375,-260.80680419,0.00013438,2]
[338546361,1726728657399,-239.19319581,0.00013438,2]
[338546362,1726728657408,-500.0,0.00013438,2]
[338546363,1726728657417,-535.87,0.00013438,2]
[338546364,1726728657427,-324.93680419,0.00013438,2]
[338546365,1726728657439,-175.06319581,0.00013438,2]
[338546366,1726728657449,-500.0,0.00013438,2]
[338546367,1726728657458,-500.0,0.00013438,2]
[338546368,1726728657469,-510.1,0.00013438,2]
[338546369,1726728657479,-713.37,0.00013438,2]
[338546370,1726728657488,-572.95,0.00013438,2]
[338546371,1726728657498,-500.0,0.00013438,2]
[338546372,1726728657510,-500.0,0.00013438,2]
[338546373,1726728657520,-500.0,0.00013438,2]
[338546374,1726728657530,-668.18,0.00013438,2]
[338546375,1726728657540,-500.0,0.00013438,2]
[338546376,1726728657551,-1018.26,0.00013438,2]
[338546377,1726728657562,-500.0,0.00013438,2]
[338546378,1726728657571,-665.1,0.00013438,2]
[338546379,1726728657581,-722.03,0.00013438,2]
[338546380,1726728657592,-500.0,0.00013438,2]
[338546381,1726728657605,-264.05158042,0.00013438,2]
[338546382,1726728657617,-235.94841958,0.00013438,2]
[338546383,1726728657627,-359.11849373,0.00013438,2]
[338546384,1726728657639,-140.88150627,0.00013438,2]
[338546385,1726728657650,-913.11,0.00013438,2]
[338546386,1726728657660,-579.41,0.00013438,2]
[338546387,1726728657669,-500.0,0.00013438,2]
[338546388,1726728657679,-624.76,0.00013438,2]
[338546389,1726728657689,-588.47,0.00013438,2]
[338546390,1726728657699,-500.0,0.00013438,2]
[338546391,1726728657710,-758.04,0.00013438,2]
[338546392,1726728657720,-500.0,0.00013438,2]
[338546393,1726728657729,-1645.71,0.00013438,2]
[338546394,1726728657738,-994.75,0.00013438,2]
[338546395,1726728657748,-500.0,0.00013438,2]
[338546396,1726728657758,-2675.36,0.00013438,2]
[338546397,1726728657767,-1722.24,0.00013438,2]
[338546398,1726728657777,-777.66,0.00013438,2]
[338546399,1726728657786,-1168.86,0.00013438,2]
[338546400,1726728657795,-404.01841324,0.00013438,2]
[338546401,1726728657807,-869.79158676,0.00013438,2]
[338546402,1726728657817,-500.0,0.00013438,2]
[338546403,1726728657827,-424.57155713,0.00013438,2]
[338546404,1726728657846,-639.67844287,0.00013438,2]
[338546405,1726728657855,-500.0,0.00013438,2]
[338546406,1726728657865,-563.93,0.00013438,2]
[338546407,1726728657874,-595.57940839,0.00013438,2]
[338546408,1726728657884,-1369.63,0.00013438,2]
[338546409,1726728657893,-500.0,0.00013438,2]
[338546410,1726728657902,-1850.09,0.00013438,2]
[338546411,1726728657912,-500.0,0.00013438,2]
[338546412,1726728657921,-500.0,0.00013438,2]
[338546413,1726728657931,-500.0,0.00013438,2]
[338546414,1726728657940,-500.0,0.00013438,2]
[338546415,1726728657951,-1154.31,0.00013438,2]
[338546416,1726728657960,-985.93,0.00013438,2]
[338546417,1726728657971,-500.0,0.00013438,2]
[338546418,1726728657980,-727.62,0.00013438,2]
[338546419,1726728657990,-719.08,0.00013438,2]
[338546420,1726728658000,-876.8,0.00013438,2]
[338546421,1726728658011,-681.24,0.00013438,2]
[338546422,1726728658022,-1216.2,0.00013438,2]
[338546423,1726728658032,-500.0,0.00013438,2]
[338546424,1726728658042,-500.0,0.00013438,2]
[338546425,1726728658054,-1282.27,0.00013438,2]
[338546426,1726728658065,-1166.51,0.00013438,2]
[338546427,1726728658075,-500.0,0.00013438,2]
[338546428,1726728658086,-1238.24,0.00013438,2]
[338546429,1726728658097,-500.0,0.00013438,2]
[338546430,1726728658107,-1022.01,0.00013438,2]
[338546431,1726728658117,-500.0,0.00013438,2]
[338546432,1726728658127,-500.0,0.00013438,2]
[338546433,1726728658137,-230.01683921,0.00013438,2]
[338546434,1726728658147,-500.0,0.00013438,2]
[338546435,1726728658157,-500.0,0.00013438,2]
[338546436,1726728658167,-1086.04,0.00013438,2]
[338546437,1726728658178,-500.0,0.00013438,2]
[338546438,1726728658188,-368.14872104,0.00013438,2]
[338546663,1726728727572,-468.4969,0.0001279,2]
[338546666,1726728727595,-300.0,0.00012889,2]
[338546670,1726728727616,-1639.97,0.0001289,2]
[338546673,1726728727638,-500.0,0.0001289,2]
[338546676,1726728727660,-1439.99,0.0001289,2]
[338546679,1726728727682,-500.0,0.0001289,2]
[338546683,1726728727703,-500.0,0.0001289,2]
[338546686,1726728727725,-500.0,0.0001289,2]
[338546689,1726728727747,-1453.1,0.0001289,2]
[338546693,1726728727773,-557.05,0.0001289,2]
[338546696,1726728727795,-500.0,0.0001289,2]
[338546699,1726728727817,-500.0,0.0001289,2]
[338546703,1726728727841,-500.0,0.0001289,2]
[338546706,1726728727864,-500.0,0.0001289,2]
[338546709,1726728727886,-500.0,0.0001289,2]
[338546713,1726728727908,-2132.06,0.0001289,2]
[338546716,1726728727929,-500.0,0.0001289,2]
[338546719,1726728727951,-679.69,0.0001289,2]
[338546722,1726728727973,-500.0,0.0001289,2]
[338546726,1726728727994,-629.2,0.0001289,2]
[338546729,1726728728015,-500.0,0.0001289,2]
[338546732,1726728728042,-500.0,0.0001289,2]
[338546735,1726728728063,-2340.94,0.0001289,2]
[338546738,1726728728085,-500.0,0.0001289,2]
[338546742,1726728728106,-500.0,0.0001289,2]
[338546745,1726728728127,-1515.22,0.0001289,2]
[338546748,1726728728149,-815.39,0.0001289,2]
[338546751,1726728728172,-794.74,0.0001289,2]
[338546755,1726728728192,-500.0,0.0001289,2]
[338546758,1726728728213,-1064.17,0.0001289,2]
[338546761,1726728728234,-500.0,0.0001289,2]
[338546764,1726728728255,-500.0,0.0001289,2]
[338546768,1726728728280,-1618.83,0.0001289,2]
[338546771,1726728728300,-500.0,0.0001289,2]
[338546774,1726728728322,-501.33,0.0001289,2]
[338546777,1726728728343,-10054.27,0.0001289,2]
[338546781,1726728728364,-931.22,0.0001289,2]
[338546784,1726728728384,-500.0,0.0001289,2]
[338546787,1726728728405,-1364.31,0.0001289,2]
[338546790,1726728728425,-463.81299404,0.0001289,2]
[338546793,1726728728445,-430.02252018,0.0001289,2]
[338546796,1726728728466,-500.0,0.0001289,2]
[338546800,1726728728488,-500.0,0.0001289,2]
[338546803,1726728728508,-839.35,0.0001289,2]
[338546806,1726728728533,-500.0,0.0001289,2]
[338546809,1726728728553,-500.0,0.0001289,2]
[338546812,1726728728575,-500.0,0.0001289,2]
[338546816,1726728728595,-1198.43,0.0001289,2]
[338546819,1726728728616,-2291.12,0.0001289,2]
[338546822,1726728728637,-609.26,0.0001289,2]
[338546825,1726728728661,-12368.02758578,0.0001289,2]
[338546829,1726728728690,23900.0,0.00012676,2]
[338547373,1726728767589,904.01,0.00012684,2]
[338547374,1726728777417,299.0,0.00010746,2]
[338547375,1726728795870,5172.3,0.00012664,2]
[338547376,1726728830033,161.3,0.00012627,2]
[338547377,1726728869953,250.0,0.00012582,2]
[338547378,1726728890520,247.29,0.00012587,2]
[338547379,1726728899686,591.82996975,0.0001269,2]
[338547380,1726728915815,1000.0,0.0001259,2]
[338547381,1726729004678,886.72,0.0001259,2]
[338547382,1726729046243,604.04,0.00012607,2]
[338547383,1726729049349,353.28,0.00012607,2]
[338547384,1726729070529,250.0,0.00012582,2]
[338547385,1726729122758,156.94,0.00012583,2]
[338547386,1726729122960,156.94,0.00012588,2]
[338547387,1726729123177,156.94,0.00012594,2]
[338547388,1726729123394,156.94,0.000126,2]
[338547389,1726729123633,156.94,0.00012605,2]
[338547390,1726729123856,156.94,0.00012611,2]
[338547391,1726729124061,156.94,0.00012617,2]
[338547392,1726729124277,156.94,0.00012623,2]
[338547393,1726729124470,156.94,0.00012628,2]
[338547394,1726729124677,156.94,0.00012634,2]
[338547395,1726729124891,156.94,0.0001264,2]
[338547396,1726729125128,156.94,0.00012646,2]
[338547399,1726729261249,698.27,0.0001237,2]
[338547400,1726729311115,284.05,0.00010449,2]
[338547401,1726729311506,284.05,0.00012713,2]
[338547402,1726729416525,247.29,0.00012345,2]
[338547403,1726729465859,200.0,0.00012329,2]
[338547429,1726729626872,991.57849362,0.00012744,2]
[338547432,1726729636388,250.0,0.00012107,2]
[338547438,1726729678894,159.1,0.00012101,2]
[338547464,1726729818166,190.98,0.00010959,2]
[338547466,1726729831526,-3302.4465138,0.00012785,2]
[338547467,1726729831719,-929.99995,0.00012785,2]
[338547468,1726729831731,-195.1835362,0.00012785,2]
[338547469,1726729831741,-1110.8164638,0.00012789,2]
[338547470,1726729831753,-17422.28674442,0.00012789,2]
[338547471,1726729831763,-342.33076866,0.0001279,2]
[338547472,1726729831773,-475.3993,0.0001279,2]
[338547473,1726729831783,-1300.0,0.000128,4]
[338547474,1726729831793,-150.0,0.00012888,2]
[338547475,1726729831803,-577.58,0.00012889,2]
[338547476,1726729831813,-500.0,0.00012889,2]
[338547477,1726729831822,-650.65,0.00012889,2]
[338547478,1726729831832,-500.0,0.00012889,2]
[338547479,1726729831841,-881.59,0.00012889,2]
[338547480,1726729831851,-500.0,0.00012889,2]
[338547481,1726729831860,-500.0,0.00012889,2]
[338547482,1726729831870,-500.0,0.00012889,2]
[338547483,1726729831880,-500.0,0.00012889,2]
[338547484,1726729831890,-873.42,0.00012889,2]
[338547485,1726729831900,-500.0,0.00012889,2]
[338547486,1726729831911,-1571.64,0.00012889,2]
[338547487,1726729831922,-500.0,0.00012889,2]
[338547488,1726729831932,-1894.25,0.00012889,2]
[338547489,1726729831942,-500.0,0.00012889,2]
[338547491,1726729831952,-796.27,0.00012889,2]
[338547493,1726729831962,-500.0,0.00012889,2]
[338547495,1726729831972,-500.0,0.00012889,2]
[338547497,1726729831982,-500.0,0.00012889,2]
[338547499,1726729831992,-500.0,0.00012889,2]
[338547501,1726729832001,-1379.99,0.00012889,2]
[338547503,1726729832010,-500.0,0.00012889,2]
[338547505,1726729832020,-572.76,0.00012889,2]
[338547507,1726729832030,-500.0,0.00012889,2]
[338547509,1726729832040,-514.92,0.00012889,2]
[338547511,1726729832050,-644.66,0.00012889,2]
[338547513,1726729832059,-500.0,0.00012889,2]
[338547515,1726729832068,-830.39,0.00012889,2]
[338547517,1726729832079,-2243.4,0.00012889,2]
[338547519,1726729832089,-500.0,0.00012889,2]
[338547521,1726729832099,-500.0,0.00012889,2]
[338547523,1726729832109,-500.0,0.00012889,2]
[338547525,1726729832120,-892.42,0.00012889,2]
[338547527,1726729832130,-677.84,0.00012889,2]
[338547530,1726729832147,-500.0,0.00012889,2]
[338547532,1726729832157,-500.0,0.00012889,2]
[338547534,1726729832168,-1022.75,0.00012889,2]
[338547536,1726729832178,-500.0,0.00012889,2]
[338547549,1726729832294,-1148.5,0.00012889,2]
[338547551,1726729832305,-500.0,0.00012889,2]
[338547553,1726729832315,-500.0,0.00012889,2]
[338547555,1726729832325,-500.0,0.00012889,2]
[338547557,1726729832334,-579.43,0.00012889,2]
[338547559,1726729832344,-1150.23,0.00012889,2]
[338547561,1726729832354,-500.0,0.00012889,2]
[338547563,1726729832366,-500.0,0.00012889,2]
[338547564,1726729832379,-500.0,0.00012889,2]
[338547565,1726729832388,-500.0,0.00012889,2]
[338547566,1726729832399,-607.09,0.00012889,2]
[338547567,1726729832409,-500.0,0.00012889,2]
[338547568,1726729832419,-958.68,0.00012889,2]
[338547569,1726729832430,-500.0,0.00012889,2]
[338547570,1726729832440,-500.0,0.00012889,2]
[338547571,1726729832451,-500.0,0.00012889,2]
[338547572,1726729832460,-602.98,0.00012889,2]
[338547573,1726729832469,-500.0,0.00012889,2]
[338547574,1726729832479,-500.0,0.00012889,2]
[338547575,1726729832488,-500.0,0.00012889,2]
[338547576,1726729832498,-500.0,0.00012889,2]
[338547577,1726729832508,-500.0,0.00012889,2]
[338547578,1726729832518,-500.0,0.00012889,2]
[338547579,1726729832527,-1019.83,0.00012889,2]
[338547580,1726729832537,-707.39,0.00012889,2]
[338547581,1726729832546,-548.93,0.00012889,2]
[338547582,1726729832555,-501.44,0.00012889,2]
[338547583,1726729832565,-609.88,0.00012889,2]
[338547584,1726729832574,-1020.69,0.00012889,2]
[338547585,1726729832584,-500.0,0.00012889,2]
[338547586,1726729832593,-500.0,0.00012889,2]
[338547587,1726729832602,-1254.91,0.00012889,2]
[338547589,1726729832612,-500.0,0.00012889,2]
[338547591,1726729832622,-500.0,0.00012889,2]
[338547593,1726729832632,-500.0,0.00012889,2]
[338547595,1726729832641,-500.0,0.00012889,2]
[338547597,1726729832650,-500.0,0.00012889,2]
[338547599,1726729832661,-500.0,0.00012889,2]
[338547601,1726729832671,-388.74750202,0.00012889,2]
[338547603,1726729832680,-500.0,0.00012889,2]
[338547605,1726729832689,-500.0,0.00012889,2]
[338547607,1726729832698,-500.0,0.00012889,2]
[338547609,1726729832709,-669.44,0.00012889,2]
[338547611,1726729832718,-500.0,0.00012889,2]
[338547613,1726729832727,-256.25522214,0.00012889,2]
[338547615,1726729832736,-500.0,0.00012889,2]
[338547617,1726729832745,-500.0,0.00012889,2]
[338547619,1726729832754,-1005.42,0.00012889,2]
[338547621,1726729832764,-772.82,0.00012889,2]
[338547623,1726729832773,-500.0,0.00012889,2]
[338547625,1726729832782,-369.48,0.00012889,2]
[338547627,1726729832791,-500.0,0.00012889,2]
[338547629,1726729832800,-1160.51,0.00012889,2]
[338547631,1726729832809,-500.0,0.00012889,2]
[338547633,1726729832819,-500.0,0.00012889,2]
[338547635,1726729832828,-938.52,0.00012889,2]
[338547637,1726729832837,-500.0,0.00012889,2]
[338547639,1726729832847,-500.0,0.00012889,2]
[338547640,1726729832856,-500.0,0.00012889,2]
[338547641,1726729832865,-1211.18,0.00012889,2]
[338547642,1726729832876,-579.01,0.00012889,2]
[338547644,1726729832886,-500.0,0.00012889,2]
[338547646,1726729832896,-769.05,0.00012889,2]
[338547648,1726729832905,-500.0,0.00012889,2]
[338547650,1726729832915,-591.84,0.00012889,2]
[338547652,1726729832925,-500.0,0.00012889,2]
[338547654,1726729832935,-500.0,0.00012889,2]
[338547656,1726729832944,-500.0,0.00012889,2]
[338547657,1726729832953,-680.86,0.00012889,2]
[338547659,1726729832962,-703.17,0.00012889,2]
[338547661,1726729832972,-568.03,0.00012889,2]
[338547663,1726729832982,-500.0,0.00012889,2]
[338547665,1726729832991,-500.0,0.00012889,2]
[338547667,1726729833000,-500.0,0.00012889,2]
[338547669,1726729833010,-500.0,0.00012889,2]
[338547671,1726729833020,-1450.17,0.00012889,2]
[338547672,1726729833029,-218.78517997,0.00012889,2]
[338547673,1726729833039,-500.0,0.00012889,2]
[338547674,1726729833049,-1817.67,0.00012889,2]
[338547675,1726729833058,-1076.37,0.00012889,2]